fUST/lending_fUST_20240118
["ID","MTS","AMOUNT","RATE_DAILY","PERIOD"]
[312005401,1705542639240,-2000.0,0.0002337,2]
[312005402,1705542639249,-2000.0,0.0002338,2]
[312005403,1705542639263,-2000.0,0.0002339,2]
[312005404,1705542639273,-2000.0,0.000234,2]
[312005405,1705542639282,-2000.0,0.0002341,2]
[312005406,1705542639291,-2000.0,0.0002342,2]
[312005407,1705542639300,-2000.0,0.0002343,2]
[312005408,1705542639310,-2000.0,0.0002344,2]
[312005409,1705542639319,-2000.0,0.0002345,2]
[312005410,1705542639328,-166.666666,0.00023456,2]
[312005411,1705542639337,-2000.0,0.0002346,2]
[312005412,1705542639347,-3762.444403,0.0002347,2]
[312005413,1705542639356,-502.21853308,0.00023776,2]
[312005414,1705542639366,-166.666666,0.00023969,2]
[312005415,1705542639375,-1570.12942806,0.00024,2]
[312005416,1705542639385,-4010.78536694,0.00024,2]
[312005417,1705542639393,-2000.0,0.000243,2]
[312005418,1705542639402,-2000.0,0.0002431,2]
[312005419,1705542639411,-2000.0,0.0002432,2]
[312005420,1705542639420,-2000.0,0.0002433,2]
[312005421,1705542639429,-2000.0,0.0002434,2]
[312005422,1705542639439,-2000.0,0.0002435,2]
[312005423,1705542639448,-2000.0,0.0002436,2]
[312005424,1705542639457,-2000.0,0.0002437,2]
[312005425,1705542639466,-2000.0,0.0002438,2]
[312005426,1705542639475,-2000.0,0.0002439,2]
[312005427,1705542639484,-2000.0,0.000244,2]
[312005428,1705542639493,-2000.0,0.0002441,2]
[312005429,1705542639504,-2000.0,0.0002442,2]
[312005430,1705542639513,-2000.0,0.0002443,2]
[312005431,1705542639522,-2000.0,0.0002444,2]
[312005432,1705542639530,-2000.0,0.0002445,2]
[312005433,1705542639539,-2000.0,0.0002446,2]
[312005434,1705542639548,-2000.0,0.0002447,2]
[312005435,1705542639560,-2000.0,0.0002448,2]
[312005436,1705542639569,-166.666666,0.00024482,2]
[312005437,1705542639578,-2844.251759,0.0002449,2]
[312005438,1705542639587,-150.05,0.000245,2]
[312005439,1705542639596,-190.142785,0.000249,2]
[312005440,1705542639605,-310.87423568,0.0002491,2]
[312005441,1705542639614,-497.89805688,0.0002495,5]
[312005442,1705542639623,-274.5510469,0.00025,2]
[312005443,1705542639632,-1045.45812768,0.00025,2]
[312005444,1705542639642,-4718.82684458,0.00025,2]
[312005445,1705542639651,-3000.0,0.00025,2]
[312005446,1705542639659,-155.48748556,0.00025,2]
[312005447,1705542639668,-678.93201338,0.00025,2]
[312005448,1705542639678,-294.64825726,0.00025,2]
[312005449,1705542639687,-258.44452491,0.00025,2]
[312005450,1705542639696,-7294.0,0.00025,2]
[312005451,1705542639705,-502.21853308,0.00025068,2]
[312005452,1705542639714,-391.0,0.00025158,7]
[312005453,1705542639723,-500.0,0.00025167,2]
[312005454,1705542639732,-500.0,0.00025167,2]
[312005455,1705542639741,-500.0,0.00025167,2]
[312005457,1705542639751,-500.0,0.00025167,2]
[312005459,1705542639760,-1272.91651321,0.00025167,2]
[312005460,1705542639769,-470.91049552,0.00025167,2]
[312005461,1705542639778,-284.64434391,0.00025167,2]
[312005462,1705542639787,-477.02661485,0.00025167,2]
[312005463,1705542639797,-500.0,0.00025167,2]
[312005464,1705542639807,-500.0,0.00025167,2]
[312005465,1705542639817,-1272.91651321,0.00025167,2]
[312005466,1705542639827,-500.0,0.00025167,2]
[312005467,1705542639836,-500.0,0.00025167,2]
[312005468,1705542639845,-500.0,0.00025167,2]
[312005469,1705542639855,-1272.91651321,0.00025167,2]
[312005470,1705542639864,-500.0,0.00025167,2]
[312005471,1705542639873,-500.0,0.00025167,2]
[312005472,1705542639882,-1272.91651321,0.00025167,2]
[312005473,1705542639891,-500.0,0.00025167,2]
[312005474,1705542639901,-500.0,0.00025167,2]
[312005475,1705542639977,-500.0,0.00025167,2]
[312005476,1705542639987,-500.0,0.00025167,2]
[312005477,1705542639996,-1272.91651321,0.00025167,2]
[312005478,1705542640005,-500.0,0.00025167,2]
[312005479,1705542640018,-500.0,0.00025167,2]
[312005480,1705542640027,-1272.91651321,0.00025167,2]
[312005481,1705542640036,-500.0,0.00025167,2]
[312005482,1705542640046,-500.0,0.00025167,2]
[312005483,1705542640054,-1272.91651321,0.00025167,2]
[312005484,1705542640065,-500.0,0.00025167,2]
[312005485,1705542640075,-500.0,0.00025167,2]
[312005486,1705542640084,-1272.91651321,0.00025167,2]
[312005487,1705542640095,-500.0,0.00025167,2]
[312005488,1705542640105,-500.0,0.00025167,2]
[312005489,1705542640114,-1272.91651321,0.00025167,2]
[312005490,1705542640123,-500.0,0.00025167,2]
[312005491,1705542640132,-1272.91651321,0.00025167,2]
[312005492,1705542640141,-500.0,0.00025167,2]
[312005493,1705542640150,-500.0,0.00025167,2]
[312005494,1705542640158,-500.0,0.00025167,2]
[312005495,1705542640168,-1272.91651321,0.00025167,2]
[312005496,1705542640177,-1272.91651321,0.00025167,2]
[312005497,1705542640186,-1272.91651321,0.00025167,2]
[312005498,1705542640195,-500.0,0.00025167,2]
[312005499,1705542640204,-500.0,0.00025167,2]
[312005500,1705542640214,-500.0,0.00025167,2]
[312005501,1705542640223,-500.0,0.00025167,2]
[312005502,1705542640232,-330.99946376,0.00025167,2]
[312005503,1705542640241,-1272.91651321,0.00025167,2]
[312005504,1705542640256,-500.0,0.00025167,2]
[312005505,1705542640266,-1272.91651321,0.00025167,2]
[312005506,1705542640275,-1272.91651321,0.00025167,2]
[312005507,1705542640284,-1272.91651321,0.00025167,2]
[312005508,1705542640293,-1272.91651321,0.00025167,2]
[312005509,1705542640302,-500.0,0.00025167,2]
[312005510,1705542640312,-1272.91651321,0.00025167,2]
[312005511,1705542640321,-500.0,0.00025167,2]
[312005512,1705542640330,-500.0,0.00025167,2]
[312005513,1705542640339,-500.0,0.00025167,2]
[312005514,1705542640348,-500.0,0.00025167,2]
[312005515,1705542640357,-1272.91651321,0.00025167,2]
[312005516,1705542640366,-1272.91651321,0.00025167,2]
[312005517,1705542640375,-500.0,0.00025167,2]
[312005519,1705542640385,-1272.91651321,0.00025167,2]
[312005521,1705542640394,-500.0,0.00025167,2]
[312005522,1705542640403,-1272.91651321,0.00025167,2]
[312005523,1705542640412,-500.0,0.00025167,2]
[312005524,1705542640421,-1272.91651321,0.00025167,2]
[312005525,1705542640431,-500.0,0.00025167,2]
[312005526,1705542640440,-1272.91651321,0.00025167,2]
[312005527,1705542640448,-649.16410532,0.00025167,2]
[312005528,1705542640458,-500.0,0.00025167,2]
[312005529,1705542640467,-500.0,0.00025167,2]
[312005530,1705542640476,-500.0,0.00025167,2]
[312005532,1705542640484,-1272.91651321,0.00025167,2]
[312005533,1705542640493,-1272.91651321,0.00025167,2]
[312005534,1705542640502,-1272.91651321,0.00025167,2]
[312005535,1705542640511,-500.0,0.00025167,2]
[312005536,1705542640520,-500.0,0.00025167,2]
[312005537,1705542640529,-500.0,0.00025167,2]
[312005538,1705542640538,-500.0,0.00025167,2]
[312005540,1705542640547,-500.0,0.00025167,2]
[312005542,1705542640556,-500.0,0.00025167,2]
[312005543,1705542640569,-500.0,0.00025167,2]
[312005544,1705542640578,-500.0,0.00025167,2]
[312005545,1705542640587,-562.86914237,0.00025167,2]
[312005546,1705542640596,-500.0,0.00025167,2]
[312005548,1705542640605,-500.0,0.00025167,2]
[312005549,1705542640613,-500.0,0.00025167,2]
[312005550,1705542640622,-500.0,0.00025167,2]
[312005551,1705542640631,-500.0,0.00025167,2]
[312005552,1705542640640,-500.0,0.00025167,2]
[312005553,1705542640649,-585.16597951,0.00025167,2]
[312005554,1705542640658,-500.0,0.00025167,2]
[312005555,1705542640667,-500.0,0.00025167,2]
[312005556,1705542640676,-500.0,0.00025167,2]
[312005557,1705542640685,-2049.28679921,0.00025167,2]
[312005558,1705542640695,-169.3867394,0.00025167,2]
[312005559,1705542640704,-2049.28679921,0.00025167,2]
[312005560,1705542640714,-383.56876137,0.00025167,2]
[312005562,1705542640723,-2049.28679921,0.00025167,2]
[312005564,1705542640732,-2049.28679921,0.00025167,2]
[312005566,1705542640741,-500.0,0.00025167,2]
[312005567,1705542640750,-2049.28679921,0.00025167,2]
[312005569,1705542640759,-500.0,0.00025167,2]
[312005571,1705542640768,-500.0,0.00025167,2]
[312005572,1705542640778,-2049.28679921,0.00025167,2]
[312005574,1705542640787,-500.0,0.00025167,2]
[312005575,1705542640797,-500.0,0.00025167,2]
[312005576,1705542640806,-2049.28679921,0.00025167,2]
[312005577,1705542640817,-2049.28679921,0.00025167,2]
[312005578,1705542640826,-2049.28679921,0.00025167,2]
[312005579,1705542640835,-500.0,0.00025167,2]
[312005580,1705542640844,-1225.71685883,0.00025167,2]
[312005581,1705542640853,-1225.71685883,0.00025167,2]
[312005582,1705542640862,-1225.71685883,0.00025167,2]
[312005583,1705542640871,-1225.71685883,0.00025167,2]
[312005584,1705542640881,-1225.71685883,0.00025167,2]
[312005585,1705542640890,-1225.71685883,0.00025167,2]
[312005586,1705542640898,-1225.71685883,0.00025167,2]
[312005587,1705542640908,-1225.71685883,0.00025167,2]
[312005588,1705542640917,-1225.71685883,0.00025167,2]
[312005589,1705542640926,-1225.71685883,0.00025167,2]
[312005590,1705542640934,-1225.71685883,0.00025167,2]
[312005591,1705542640943,-1444.59486932,0.00025167,2]
[312005592,1705542640952,-441.58419443,0.00025167,4]
[312005593,1705542640961,-500.0,0.00025167,4]
[312005594,1705542640970,-500.0,0.00025167,4]
[312005595,1705542640979,-500.0,0.00025167,4]
[312005596,1705542640989,-500.0,0.00025167,4]
[312005597,1705542640999,-500.0,0.00025167,4]
[312005598,1705542641011,-500.0,0.00025167,4]
[312005599,1705542641020,-500.0,0.00025167,4]
[312005600,1705542641028,-238.41130388,0.00025167,4]
[312005601,1705542641037,-500.0,0.00025167,4]
[312005602,1705542641047,-500.0,0.00025167,4]
[312005603,1705542641056,-500.0,0.00025167,4]
[312005604,1705542641070,-261.4502472,0.00025167,4]
[312005605,1705542641079,-500.0,0.00025167,4]
[312005606,1705542641089,-500.0,0.00025167,4]
[312005607,1705542641098,-500.0,0.00025167,4]
[312005608,1705542641107,-500.0,0.00025167,4]
[312005609,1705542641116,-285.5184804,0.00025167,4]
[312005610,1705542641125,-500.0,0.00025167,4]
[312005611,1705542641134,-500.0,0.00025167,4]
[312005612,1705542641142,-500.0,0.00025167,4]
[312005613,1705542641151,-500.0,0.00025167,4]
[312005614,1705542641160,-500.0,0.00025167,4]
[312005615,1705542641169,-500.0,0.00025167,4]
[312005616,1705542641178,-500.0,0.00025167,4]
[312005617,1705542641186,-500.0,0.00025167,4]
[312005618,1705542641195,-252.11562514,0.00025167,4]
[312005619,1705542641204,-500.0,0.00025167,4]
[312005620,1705542641214,-500.0,0.00025167,4]
[312005621,1705542641223,-559.44002628,0.00025167,4]
[312005622,1705542641232,-500.0,0.00025167,4]
[312005623,1705542641241,-500.0,0.00025167,4]
[312005624,1705542641250,-500.0,0.00025167,4]
[312005625,1705542641259,-500.0,0.00025167,4]
[312005626,1705542641268,-500.0,0.00025167,4]
[312005627,1705542641277,-500.0,0.00025167,4]
[312005628,1705542641287,-500.0,0.00025167,4]
[312005629,1705542641296,-500.0,0.00025167,4]
[312005630,1705542641305,-500.0,0.00025167,4]
[312005631,1705542641316,-500.0,0.00025167,4]
[312005632,1705542641326,-500.0,0.00025167,4]
[312005633,1705542641335,-500.0,0.00025167,4]
[312005634,1705542641344,-500.0,0.00025167,4]
[312005635,1705542641353,-500.0,0.00025167,4]
[312005636,1705542641362,-500.0,0.00025167,4]
[312005639,1705542641433,-500.0,0.00025167,4]
[312005640,1705542641442,-500.0,0.00025167,4]
[312005641,1705542641452,-8399.9204692,0.00025168,2]
[312005642,1705542641461,-50000.0,0.00025168,2]
[312005643,1705542641470,-50000.0,0.00025168,2]
[312005644,1705542641479,-50000.0,0.00025168,2]
[312005645,1705542641488,-50000.0,0.00025168,2]
[312005646,1705542641498,-50000.0,0.00025168,2]
[312005647,1705542641507,-50000.0,0.00025168,2]
[312005648,1705542641517,-50000.0,0.00025168,2]
[312005649,1705542641526,-55058.20488018,0.00025168,2]
[312005650,1705542641535,-19481.69430185,0.00025168,2]
[312005651,1705542641544,-162.0,0.00025817,2]
[312005652,1705542641554,-202.416,0.00025817,2]
[312005653,1705542641567,-151.0,0.00025925,2]
[312005654,1705542641577,-526.29712741,0.00026,2]
[312005655,1705542641593,-694.83237512,0.000264,2]
[312005656,1705542641608,-151.0,0.00026684,2]
[312005657,1705542641618,-155.0,0.00027397,2]
[312005658,1705542641628,-150.95004265,0.00027397,7]
[312005659,1705542641638,-261.3528024,0.000274,2]
[312005660,1705542641648,-151.0,0.00027442,2]
[312005661,1705542641658,-3318.9973618,0.000275,2]
[312005662,1705542641667,-6813.51405285,0.00027531,5]
[312005663,1705542641677,-224.0629603,0.00027671,2]
[312005664,1705542641687,-200.0,0.00027674,15]
[312005665,1705542641697,-348.0,0.00027674,15]
[312005666,1705542641707,-623.74161876,0.0002772,2]
[312005667,1705542641717,-305.46439516,0.00028,2]
[312005668,1705542641727,-290.00241025,0.00028,2]
[312005669,1705542641737,-154.98450155,0.00028,2]
[312005670,1705542641747,-154.98450155,0.00028,10]
[312005671,1705542641757,-379.58408484,0.00028,14]
[312005672,1705542641766,-151.0,0.000282,2]
[312005673,1705542641776,-153.0,0.00028493,2]
[312005674,1705542641786,-5305.88450196,0.0002857,2]
[312005675,1705542641796,-5000.0,0.00028586,5]
[312005676,1705542641806,-155.0,0.00028767,2]
[312005677,1705542641818,-166.150183,0.00028767,2]
[312005678,1705542641828,-476.133499,0.00028767,2]
[312005679,1705542641838,-209.21910912,0.00028895,2]
[312005680,1705542641848,-155.93652186,0.00028895,2]
[312005681,1705542641858,-1148.48932827,0.00028895,2]
[312005682,1705542641867,-257.15115506,0.00028895,2]
[312005683,1705542641876,-1500.0,0.000289,2]
[312005684,1705542641886,-151.0,0.00028959,2]
[312005685,1705542641895,-712.03038344,0.00028995,2]
[312005686,1705542641905,-7270.42476621,0.00028995,2]
[312005687,1705542641914,-710.83318065,0.00028995,2]
[312005688,1705542641925,-2430.60577741,0.00028995,2]
[312005689,1705542641934,-154.98450155,0.00029,2]
[312005690,1705542641944,-2455.73923901,0.00029,2]
[312005691,1705542641954,-722.46780766,0.00029,2]
[312005692,1705542641963,-722.46780766,0.00029,2]
[312005693,1705542641973,-722.46780766,0.00029,2]
[312005694,1705542641983,-722.46780766,0.00029,2]
[312005695,1705542641992,-722.46780766,0.00029,2]
[312005696,1705542642002,-722.46780766,0.00029,2]
[312005697,1705542642013,-722.46780766,0.00029,2]
[312005698,1705542642023,-722.46780766,0.00029,2]
[312005699,1705542642033,-722.46780766,0.00029,2]
[312005700,1705542642042,-722.46780766,0.00029,2]
[312005701,1705542642052,-200.41,0.000291,4]
[312005702,1705542642063,-620.18708094,0.00029106,2]
[312005703,1705542642073,-155.37755141,0.00029204,2]
[312005704,1705542642082,-2080.14891005,0.00029213,2]
[312005705,1705542642093,-155.27165031,0.00029213,2]
[312005706,1705542642103,-904.88285948,0.00029214,2]
[312005707,1705542642112,-248.54102261,0.00029264,2]
[312005708,1705542642120,-170.248055,0.00029315,2]
[312005709,1705542642131,-433.9252263,0.00029315,2]
[312005710,1705542642140,-153.0,0.00029315,2]
[312005711,1705542642149,-153.0,0.00029315,2]
[312005712,1705542642158,-306.0,0.00029315,2]
[312005713,1705542642167,-177.6316112,0.00029315,2]
[312005714,1705542642176,-198.9993255,0.00029315,2]
[312005715,1705542642185,-153.0,0.00029315,2]
[312005716,1705542642194,-154.1994419,0.00029315,2]
[312005717,1705542642203,-153.0,0.00029378,2]
[312005718,1705542642212,-153.0,0.00029378,2]
[312005719,1705542642221,-213.00013457,0.000295,30]
[312005720,1705542642230,-248.54102261,0.00029534,2]
[312005721,1705542642240,-157.9218674,0.00029589,2]
[312005722,1705542642249,-248.54102261,0.00029598,2]
[312005723,1705542642258,-153.23014305,0.00029634,2]
[312005724,1705542642267,-5000.0,0.00029642,5]
[312005725,1705542642276,-5000.0,0.00029666,5]
[312005726,1705542642286,-476.133499,0.00029687,2]
[312005727,1705542642295,-151.0,0.00029717,2]
[312005728,1705542642304,-1500.0,0.000299,2]
[312005729,1705542642316,-248.54102261,0.00029953,2]
[312005730,1705542642325,-154.98450155,0.0003,2]
[312005731,1705542642334,-243.91959085,0.0003,4]
[312005732,1705542642343,-682.23213824,0.0003,3]
[312005733,1705542642353,-287.25958641,0.0003,4]
[312005734,1705542642362,-687.89788967,0.0003,4]
[312005735,1705542642371,-195.1690538,0.0003,4]
[312005736,1705542642381,-464.23133021,0.0003,4]
[312005737,1705542642390,-232.19740588,0.0003,4]
[312005738,1705542642399,-154.98450155,0.0003,4]
[312005739,1705542642409,-640.81580837,0.0003,4]
[312005740,1705542642419,-157.65627202,0.0003,4]
[312005741,1705542642428,-1153.01652745,0.0003,2]
[312005742,1705542642437,-431.47408337,0.0003,4]
[312005743,1705542642446,-31967.20813044,0.0003,4]
[312005744,1705542642455,-157.79212316,0.0003,2]
[312005745,1705542642464,-200.4077457,0.0003,4]
[312005746,1705542642472,-156.43178416,0.0003,4]
[312005747,1705542642482,-286.20177203,0.0003,2]
[312005748,1705542642491,-3759.56124,0.0003,2]
[312005749,1705542642500,-177.0,0.0003,2]
[312005750,1705542642510,-248.54102261,0.00030015,7]
[312005751,1705542642519,-351.76086465,0.00030037,3]
[312005752,1705542642528,-153.23014305,0.00030053,7]
[312005753,1705542642537,-248.54102261,0.00030061,7]
[312005754,1705542642547,-245.009401,0.000301,2]
[312005755,1705542642556,-245.009401,0.000301,2]
[312005756,1705542642567,-6706.21,0.00030131,2]
[312005757,1705542642576,-6035.59,0.00030131,2]
[312005758,1705542642585,-6035.59,0.00030131,2]
[312005759,1705542642594,-6035.59,0.00030131,2]
[312005760,1705542642603,-500.0,0.00030136,2]
[312005761,1705542642613,-153.0,0.00030137,2]
[312005762,1705542642622,-153.0,0.00030137,2]
[312005763,1705542642631,-153.0,0.00030137,2]
[312005764,1705542642641,-153.0,0.00030137,2]
[312005765,1705542642650,-153.0,0.00030137,2]
[312005766,1705542642659,-153.0,0.00030137,2]
[312005767,1705542642668,-153.0,0.00030137,2]
[312005768,1705542642678,-153.0,0.00030137,2]
[312005769,1705542642687,-153.0,0.00030137,2]
[312005770,1705542642696,-153.0,0.00030137,2]
[312005771,1705542642706,-153.0,0.00030137,2]
[312005772,1705542642715,-153.0,0.00030137,2]
[312005773,1705542642724,-153.0,0.00030137,2]
[312005774,1705542642733,-198.9993255,0.00030137,2]
[312005775,1705542642742,-153.0,0.00030137,2]
[312005776,1705542642751,-153.0,0.00030137,2]
[312005780,1705542642833,-153.0,0.00030137,2]
[312005782,1705542642842,-153.0,0.00030137,2]
[312005783,1705542642851,-153.0,0.00030137,2]
[312005785,1705542642860,-198.9993255,0.00030137,2]
[312005787,1705542642868,-153.0,0.00030137,2]
[312005789,1705542642877,-153.0,0.00030137,2]
[312005790,1705542642886,-153.0,0.00030137,2]
[312005791,1705542642896,-153.0,0.00030137,2]
[312005792,1705542642905,-153.0,0.00030137,2]
[312005793,1705542642914,-198.9993255,0.00030137,2]
[312005794,1705542642923,-153.0,0.00030137,2]
[312005795,1705542642932,-153.0,0.00030137,2]
[312005797,1705542642941,-153.0,0.00030137,2]
[312005799,1705542642951,-198.7490627,0.00030137,2]
[312005801,1705542642960,-153.0,0.00030137,2]
[312005803,1705542642970,-153.0,0.00030137,2]
[312005805,1705542642979,-306.0,0.00030137,2]
[312005807,1705542642989,-153.0,0.00030137,2]
[312005808,1705542642999,-153.0,0.00030137,2]
[312005809,1705542643010,-153.0,0.00030137,2]
[312005810,1705542643021,-198.9993255,0.00030137,2]
[312005811,1705542643030,-153.0,0.00030137,2]
[312005812,1705542643038,-153.0,0.00030137,2]
[312005813,1705542643048,-153.0,0.00030137,2]
[312005814,1705542643057,-153.0,0.00030137,2]
[312005815,1705542643068,-153.0,0.00030137,2]
[312005816,1705542643077,-153.0,0.00030137,2]
[312005817,1705542643087,-153.0,0.00030137,2]
[312005818,1705542643097,-198.9993255,0.00030137,2]
[312005820,1705542643106,-153.0,0.00030137,2]
[312005822,1705542643115,-198.9993255,0.00030137,2]
[312005823,1705542643124,-153.0,0.00030137,2]
[312005824,1705542643133,-198.9993255,0.00030137,2]
[312005825,1705542643142,-198.9993255,0.00030137,2]
[312005826,1705542643150,-198.9993255,0.00030137,2]
[312005827,1705542643159,-198.9993255,0.00030137,2]
[312005829,1705542643169,-198.9993255,0.00030137,2]
[312005830,1705542643177,-198.9993255,0.00030137,2]
[312005831,1705542643186,-198.9993255,0.00030137,2]
[312005832,1705542643195,-198.9993255,0.00030137,2]
[312005833,1705542643205,-198.9993255,0.00030137,2]
[312005834,1705542643214,-198.9993255,0.00030137,2]
[312005836,1705542643223,-198.9993255,0.00030137,2]
[312005837,1705542643232,-153.0,0.00030137,2]
[312005838,1705542643241,-153.0,0.00030137,2]
[312005839,1705542643250,-198.9993255,0.00030137,2]
[312005840,1705542643258,-153.0,0.00030137,2]
[312005841,1705542643267,-153.0,0.00030137,2]
[312005842,1705542643276,-153.0,0.00030137,2]
[312005844,1705542643285,-202.0024821,0.00030137,2]
[312005846,1705542643295,-153.0,0.00030137,2]
[312005847,1705542643303,-153.0,0.00030137,2]
[312005848,1705542643314,-153.0,0.00030137,2]
[312005849,1705542643322,-153.0,0.00030137,2]
[312005850,1705542643331,-153.0,0.00030137,2]
[312005851,1705542643340,-153.0,0.00030137,2]
[312005852,1705542643349,-153.0,0.00030137,2]
[312005853,1705542643358,-153.0,0.00030137,2]
[312005854,1705542643366,-153.0,0.00030137,2]
[312005855,1705542643375,-153.0,0.00030137,2]
[312005856,1705542643384,-153.0,0.00030137,2]
[312005857,1705542643394,-153.0,0.00030137,2]
[312005858,1705542643403,-153.0,0.00030137,2]
[312005859,1705542643412,-457.5024889,0.00030137,2]
[312005860,1705542643421,-153.0,0.00030137,2]
[312005861,1705542643430,-153.9403809,0.00030137,2]
[312005862,1705542643439,-153.0,0.00030137,2]
[312005863,1705542643448,-153.0,0.00030137,2]
[312005864,1705542643457,-397.91523,0.00030137,2]
[312005865,1705542643466,-153.0,0.00030137,2]
[312005866,1705542643475,-153.0,0.00030137,2]
[312005867,1705542643484,-153.0,0.00030137,2]
[312005868,1705542643493,-153.0,0.00030137,2]
[312005869,1705542643503,-153.0,0.00030137,2]
[312005870,1705542643512,-153.0,0.00030137,2]
[312005871,1705542643521,-153.0,0.00030137,2]
[312005872,1705542643530,-153.0,0.00030137,2]
[312005873,1705542643539,-153.0,0.00030137,2]
[312005874,1705542643548,-198.9993255,0.00030137,2]
[312005875,1705542643558,-153.0,0.00030137,2]
[312005876,1705542643568,-198.9993255,0.00030137,2]
[312005877,1705542643577,-198.9993255,0.00030137,2]
[312005878,1705542643586,-153.0,0.00030137,2]
[312005879,1705542643595,-153.0,0.00030137,2]
[312005880,1705542643605,-153.0,0.00030137,2]
[312005881,1705542643614,-198.8324835,0.00030137,2]
[312005882,1705542643623,-153.0,0.00030137,2]
[312005883,1705542643632,-153.0,0.00030137,2]
[312005884,1705542643641,-153.0,0.00030137,2]
[312005885,1705542643651,-306.4086177,0.00030137,2]
[312005886,1705542643660,-306.0,0.00030137,2]
[312005887,1705542643669,-153.0,0.00030137,2]
[312005888,1705542643678,-153.0,0.00030137,2]
[312005889,1705542643689,-153.0,0.00030137,2]
[312005890,1705542643698,-153.0,0.00030137,2]
[312005891,1705542643707,-153.0,0.00030137,2]
[312005892,1705542643716,-153.0,0.00030137,2]
[312005893,1705542643726,-153.0,0.00030137,2]
[312005894,1705542643739,-153.0,0.00030137,2]
[312005895,1705542643748,-153.0,0.00030137,2]
[312005896,1705542643757,-153.0,0.00030137,2]
[312005897,1705542643766,-153.0,0.00030137,2]
[312005898,1705542643775,-153.0,0.00030137,2]
[312005899,1705542643785,-153.0,0.00030137,2]
[312005900,1705542643794,-358.9413143,0.00030137,2]
[312005901,1705542643803,-198.957615,0.00030137,2]
[312005902,1705542643813,-153.0,0.00030137,2]
[312005903,1705542643822,-153.0,0.00030137,2]
[312005904,1705542643831,-153.0,0.00030137,2]
[312005905,1705542643840,-153.0,0.00030137,2]
[312005906,1705542643849,-153.0,0.00030137,2]
[312005907,1705542643858,-154.4659568,0.00030137,2]
[312005908,1705542643868,-153.0,0.00030137,2]
[312005909,1705542643877,-153.0,0.00030137,2]
[312005910,1705542643887,-153.0,0.00030137,2]
[312005911,1705542643896,-153.0,0.00030137,2]
[312005912,1705542643905,-41823.5997688,0.00030137,2]
[312005913,1705542643915,-155.0,0.00030137,2]
[312005914,1705542643924,-524.258302,0.00030142,2]
[312005915,1705542643933,-248.54102261,0.00030239,7]
[312005916,1705542643942,-500.0,0.00030273,2]
[312005917,1705542643951,-153.23014305,0.0003028,7]
[312005918,1705542643960,-5000.0,0.00030284,2]
[312005919,1705542643969,-5000.0,0.00030286,2]
[312005920,1705542643978,-5000.0,0.00030286,2]
[312005921,1705542643987,-5000.0,0.00030288,2]
[312005922,1705542643996,-4999.97,0.00030288,2]
[312005923,1705542644058,-5000.0,0.00030288,2]
[312005924,1705542644074,-5000.0,0.0003029,2]
[312005925,1705542644083,-171.42439715,0.0003029,7]
[312005926,1705542644093,-5000.0,0.00030291,2]
[312005927,1705542644103,-5000.01,0.00030294,2]
[312005928,1705542644112,-4009.18,0.00030299,2]
[312005929,1705542644121,-4051.11,0.000303,2]
[312005930,1705542644130,-4999.98,0.00030301,2]
[312005931,1705542644139,-5000.0,0.00030301,2]
[312005932,1705542644148,-4999.97,0.00030305,2]
[312005933,1705542644157,-4999.99,0.00030306,2]
[312005934,1705542644167,-990.78,0.00030306,2]
[312005935,1705542644175,-4590.68,0.00030306,2]